bitfinex-derivatives/quotes_ETHF0:USTF0_20250730
["timestamp","ask_amount","ask_price","bid_price","bid_amount"]
[1753890084224,2.9509,3794.1,3794.0,5.1584]
[1753890084423,0.0177,3794.2,3794.1,5.68553]
[1753890086325,0.6394,3794.2,3794.1,5.1584]
[1753890086521,2.9686,3794.2,3794.1,5.1584]
[1753890086928,0.6394,3794.2,3794.1,5.1584]
[1753890087225,0.6394,3794.2,3794.1,6.64984206]
[1753890087226,0.0177,3794.2,3794.1,6.64984206]
[1753890088727,3.4919,3795.0,3794.9,1.9757]
[1753890088925,3.4919,3795.0,3794.9,4.9325]
[1753890089623,1.1543,3795.0,3794.9,4.9325]
[1753890089824,4.5323,3795.0,3794.9,4.9325]
[1753890090026,4.53236,3794.6,3794.5,1.4511]
[1753890090230,5.23626,3794.6,3794.5,1.4511]
[1753890090423,2.87833,3794.4,3793.8,1.39565252]
[1753890090624,5.03802426,3794.0,3793.8,0.19505252]
[1753890090824,4.30305,3794.0,3793.9,0.8426]
[1753890091223,5.23635,3794.0,3793.9,0.8426]
[1753890091929,5.23635,3794.0,3793.9,2.6517]
[1753890092329,0.6273,3794.0,3793.9,4.9325]
[1753890093028,0.52712,3794.2,3794.1,3.7319]
[1753890093223,2.08772,3794.2,3794.1,4.9325]
[1753890093529,4.0053,3794.2,3794.1,4.9325]
[1753890094527,3.0016,3794.2,3794.1,4.9325]
[1753890096826,1.46035,3794.7,3794.4,2.50278]
[1753890097027,0.9333,3794.6,3794.4,2.50278]
[1753890097427,2.1697,3794.6,3794.5,4.9325]
[1753890097731,0.6273,3794.6,3794.5,4.9325]
[1753890098730,1.15425,3795.4,3795.3,1.9757]
[1753890099025,0.6273,3795.4,3795.3,4.9325]
[1753890099230,2.0683,3795.4,3795.3,4.9325]
[1753890099430,4.0053,3795.4,3795.3,4.9325]
[1753890100124,3.0016,3795.4,3795.3,4.9325]
[1753890100328,1.2364,3795.4,3795.3,4.9325]
[1753890100523,4.0053,3795.4,3795.3,4.9325]
[1753890101631,3.0016,3795.4,3795.3,4.9325]
[1753890102422,4.0053,3795.4,3795.3,4.9325]
[1753890102931,3.0016,3795.4,3795.3,4.9325]
[1753890103436,2.1697,3795.4,3795.3,4.9325]
[1753890103635,4.53224,3795.5,3795.4,4.9325]
[1753890105931,3.52854,3795.5,3795.4,4.9325]
[1753890106136,2.1697,3795.5,3795.4,4.9325]
[1753890106335,1.5606,3795.5,3795.4,4.9325]
[1753890106640,3.0016,3795.5,3795.4,4.9325]
[1753890106833,4.0053,3795.5,3795.4,4.9325]
[1753890107029,0.52699,3795.1,3795.0,0.9136]
[1753890107339,4.0053,3795.1,3795.0,0.6085]
[1753890107633,4.53229,3795.1,3795.0,3.4144]
[1753890107832,2.1697,3795.1,3795.0,4.9325]
[1753890108741,1.15428,3795.2,3795.1,4.9325]
[1753890109031,2.08758,3795.2,3795.1,4.9325]
[1753890109434,5.23618,3795.2,3795.1,3.4144]
[1753890109639,5.23618,3795.2,3795.1,2.2138]
[1753890109834,2.0683,3794.9,3794.8,0.8426]
[1753890110038,4.53232,3794.9,3794.8,4.0189]
[1753890110240,4.53232,3794.9,3794.8,4.9325]
[1753890113943,4.53232,3794.9,3794.8,4.0189]
[1753890114143,5.23542,3794.9,3794.8,4.0189]
[1753890114343,4.53232,3794.9,3794.8,4.0189]
[1753890116040,5.23542,3794.9,3794.8,4.0189]
[1753890117043,4.53232,3794.9,3794.8,4.0189]
[1753890117340,4.53232,3794.9,3794.8,4.9325]
[1753890117541,4.53232,3794.9,3794.8,4.0189]
[1753890118137,4.53232,3794.9,3794.8,4.9325]
[1753890118541,4.53232,3794.9,3794.8,4.0189]
[1753890118747,5.23182,3794.9,3794.8,4.0189]
[1753890119244,4.53232,3794.9,3794.8,4.8676]
[1753890120241,3.41697,3794.5,3794.4,4.9436]
[1753890120440,4.37747,3794.5,3794.4,4.9436]
[1753890120941,4.37753,3794.1,3794.0,4.0311]
[1753890121545,4.37753,3794.1,3794.0,4.9436]
[1753890121846,3.41703,3794.1,3794.0,4.9436]
[1753890122042,3.41703,3794.1,3793.5,39.27701]
[1753890122043,0.52716,3793.9,3793.5,40.5318]
[1753890122243,4.37756,3793.9,3793.8,1.72865252]
[1753890122548,5.07706,3793.9,3793.8,0.19505252]
[1753890122937,5.07706,3793.9,3792.8,0.5273]
[1753890122938,2.5795,3793.7,3792.7,2.1094]
[1753890123138,5.11277218,3792.8,3792.7,4.9436]
[1753890123347,5.11277218,3792.8,3792.7,4.0949]
[1753890123945,5.11277218,3792.8,3792.7,4.9436]
[1753890124149,3.8504,3792.8,3792.7,4.9436]
[1753890124340,2.8899,3792.8,3792.7,4.9436]
[1753890124539,2.1392,3792.8,3792.7,4.9436]
[1753890125147,3.8504,3792.8,3792.7,4.9436]
[1753890126551,2.8899,3792.8,3792.7,4.9436]
[1753890127047,2.1392,3792.8,3792.7,4.9436]
[1753890127244,2.63502,3795.1,3792.6,0.52732]
[1753890127245,0.52721,3793.6,3793.5,4.0311]
[1753890127447,0.52721,3793.6,3793.5,4.9436]
[1753890127653,4.37761,3793.6,3793.5,4.0949]
[1753890127851,4.37765,3793.2,3793.1,4.9436]
[1753890128444,2.2917,3793.2,3793.1,4.9436]
[1753890128644,1.541,3793.2,3793.1,4.9436]
[1753890128850,0.6215,3793.2,3793.1,4.9436]
[1753890129454,2.8899,3793.2,3793.1,4.0949]
[1753890129653,0.9195,3794.2,3793.3,0.8487]
[1753890129853,4.37751,3794.2,3794.1,3.4855]
[1753890130361,5.07701,3794.2,3794.1,3.4855]
[1753890130560,5.07701,3794.2,3794.1,1.5336]
[1753890130757,3.45806,3793.9,3793.8,3.4855]
[1753890130957,3.2522,3793.2,3793.1,1.9855]
[1753890131155,3.8504,3793.2,3793.1,2.8342]
[1753890131662,3.8504,3793.2,3793.1,4.9436]
[1753890133056,0.52723,3793.4,3793.1,5.47085]
[1753890133263,1.14873,3793.4,3793.3,4.9436]
[1753890133561,4.3777,3792.9,3792.8,4.0949]
[1753890133763,5.11276218,3792.9,3792.8,4.0949]
[1753890134157,4.58546218,3792.9,3792.8,4.9436]
[1753890134355,2.8899,3792.9,3792.8,4.9436]
[1753890134758,0.6215,3792.9,3792.8,4.9436]
[1753890134956,2.0682,3793.6,3793.5,4.0949]
[1753890135156,0.52719,3793.7,3793.5,2.51271]
[1753890135462,0.52719,3793.7,3793.6,4.9436]
[1753890135957,0.9195,3793.9,3793.7,2.1094]
[1753890136165,1.14866,3793.9,3793.8,4.9436]
[1753890136567,0.52715,3794.0,3793.9,4.9436]
[1753890137262,1.14865,3794.0,3793.9,4.9436]
[1753890137860,2.06815,3794.0,3793.9,4.9436]
[1753890138357,1.88,3793.9,3793.0,2.0456]
[1753890138553,1.88,3793.9,3792.3,1.31843]
[1753890138554,2.1392,3793.4,3792.3,1.31843]
[1753890138756,4.37769,3793.0,3792.9,4.1886]
[1753890138967,2.8899,3793.0,3792.9,4.9436]
[1753890139263,0.6215,3793.0,3792.9,4.9436]
[1753890139766,0.52728,3793.1,3792.9,2.51278]
[1753890139959,0.52728,3793.1,3793.0,4.9436]
[1753890140363,1.14878,3793.1,3793.0,4.9436]
[1753890140663,2.06828,3793.1,3793.0,4.9436]
[1753890141561,2.66648,3793.1,3793.0,4.9436]
[1753890141755,4.37768,3793.1,3793.0,4.9436]
[1753890142862,4.37768,3793.1,3793.0,4.0949]
[1753890143061,5.07718,3793.1,3793.0,4.0949]
[1753890143262,4.37768,3793.1,3793.0,4.0949]
[1753890144164,4.37768,3793.1,3792.2,39.1673587]
[1753890144369,4.37775,3792.6,3792.5,4.9436]
[1753890144668,1.3182,3793.1,3792.5,4.9436]
[1753890144861,0.52733,3792.7,3792.6,4.9436]
[1753890147371,1.14883,3792.7,3792.6,4.9436]
[1753890148469,0.6215,3792.7,3792.6,4.9436]
[1753890149767,1.4784,3792.7,3792.6,4.9436]
[1753890149964,2.8568,3792.7,3792.6,4.9436]
[1753890150159,3.7772,3792.7,3792.6,4.9436]
[1753890150768,0.52734,3792.6,3792.2,1.6580387]
[1753890151070,0.52734,3792.6,3792.2,0.0184587]
[1753890151071,3.14996,3792.4,3792.2,0.0184587]
[1753890151267,3.14996,3792.4,3792.2,3.2838587]
[1753890151268,4.3999,3792.3,3792.2,3.2838587]
[1753890151463,3.7305,3792.3,3792.2,3.8546587]
[1753890151662,3.7305,3792.3,3792.2,4.7225587]
[1753890153166,2.8101,3792.3,3792.2,4.7225587]
[1753890153765,2.8101,3792.3,3792.2,0.0184587]
[1753890153766,3.7305,3792.3,3792.2,0.0184587]
[1753890153967,4.3999,3792.3,3792.2,0.8646587]
[1753890154161,4.3999,3792.3,3792.2,0.0184587]
[1753890154871,4.3999,3792.3,3792.2,0.8646587]
[1753890155865,4.3999,3792.3,3792.2,1.4360587]
[1753890156269,4.3999,3792.3,3792.2,3.2838587]
[1753890157076,3.7305,3792.3,3792.2,4.7225587]
[1753890158671,4.3999,3792.3,3792.2,0.0184587]
[1753890158863,4.25793,3791.9,3791.8,0.1951554]
[1753890159081,6.41843713,3791.9,3791.8,0.1951554]
[1753890159969,11.41843713,3791.9,3791.8,0.1951554]
[1753890160176,4.9274,3791.4,3791.3,2.1532]
[1753890160373,4.258,3791.4,3791.3,3.8362]
[1753890160568,4.258,3791.4,3791.3,4.7041]
[1753890160875,1.31849,3792.2,3791.6,3.2654]
[1753890161180,5.74898713,3792.3,3792.2,3.8362]
[1753890161474,1.173,3791.4,3791.3,2.7457]
[1753890161672,2.0299,3791.4,3791.3,2.7457]
[1753890161876,1.4573,3791.4,3791.3,2.7457]
[1753890162077,1.4573,3791.4,3791.3,4.7041]
[1753890162276,0.6004,3791.4,3791.3,4.7041]
[1753890163473,3.7305,3791.4,3791.3,4.7041]
[1753890165580,2.8101,3791.4,3791.3,4.7041]
[1753890165783,4.25797,3791.7,3791.6,1.8778]
[1753890165984,4.25797,3791.7,3791.6,4.7041]
[1753890166482,4.25797,3791.7,3791.4,0.52749]
[1753890166483,0.52744,3791.9,3791.8,4.7041]
[1753890166687,1.1278,3792.2,3792.1,1.3064]
[1753890166895,1.1278,3792.2,3792.1,4.7041]
[1753890167288,0.8569,3792.4,3791.3,0.8462]
[1753890167592,4.25795,3791.8,3791.7,3.5919]
[1753890167793,4.92735,3791.8,3791.7,0.8462]
[1753890168185,4.25799,3791.5,3791.4,3.2654]
[1753890168489,1.31856,3792.0,3791.4,1.8778]
[1753890168694,1.12786,3791.8,3791.7,4.7041]
[1753890168890,0.6004,3792.0,3791.9,1.8778]
[1753890169095,0.6004,3792.0,3791.9,4.7041]
[1753890169892,1.38429,3792.3,3792.1,5.2315]
[1753890170088,0.52737,3792.4,3792.2,2.40518]
[1753890170286,0.52734,3792.6,3792.5,4.7041]
[1753890170488,1.12774,3792.6,3792.5,4.7041]
[1753890170790,2.55724,3792.6,3792.5,4.7041]
[1753890171387,3.33744,3792.6,3792.5,4.7041]
[1753890174294,4.25784,3792.6,3792.5,4.7041]
[1753890174491,4.92724,3792.6,3792.5,3.2654]
[1753890175099,2.48059,3792.2,3792.1,3.8579]
[1753890175301,4.25789,3792.2,3792.1,3.8579]
[1753890175497,4.25789,3792.2,3791.7,0.52745]
[1753890175498,1.31849,3792.2,3791.7,0.5708]
[1753890175691,3.7305,3791.9,3791.8,4.7041]
[1753890175996,1.98472,3792.0,3791.9,4.7041]
[1753890176595,2.0299,3792.0,3791.9,4.7041]
[1753890176795,0.6004,3792.0,3791.9,4.7041]
[1753890177192,1.4573,3792.0,3791.9,4.7041]
[1753890178097,2.8101,3792.7,3792.6,4.7041]
[1753890178496,0.52732,3792.7,3792.6,4.7041]
[1753890178698,0.52732,3792.8,3792.6,4.7041]
[1753890178894,0.52732,3792.8,3792.7,4.7708]
[1753890179091,1.318,3793.6,3793.0,2.7744]
[1753890179403,4.09211622,3793.5,3793.4,4.7708]
[1753890179796,4.90761622,3793.5,3793.4,3.9462]
[1753890179997,4.90764997,3793.5,3793.4,3.9462]
[1753890180203,4.76571,3793.5,3793.4,1.4434]
[1753890180398,4.12665,3793.2,3793.1,3.38]
[1753890181193,0.2,3793.9,3793.1,3.9462]
[1753890181399,0.2,3793.9,3793.8,4.7708]
[1753890181797,0.7607,3793.9,3793.8,4.7708]
[1753890182103,0.2,3793.9,3793.8,4.7708]
[1753890182309,3.7994,3793.9,3793.8,4.7708]
[1753890182602,3.7994,3793.9,3793.8,3.9462]
[1753890182800,2.9195,3793.9,3793.8,4.7708]
[1753890183410,2.157,3793.9,3793.8,4.7708]
[1753890184611,3.7994,3793.9,3793.8,4.7708]
[1753890184913,4.4385,3793.9,3793.8,0.8435]
[1753890185410,3.7994,3793.9,3793.8,3.38]
[1753890185608,3.7994,3793.9,3793.8,4.7708]
[1753890185810,0.7607,3793.9,3793.8,4.7708]
[1753890186019,0.2,3793.9,3793.8,4.7708]
[1753890186715,2.9195,3793.9,3793.8,4.7708]
[1753890186904,3.7994,3793.9,3793.8,4.7708]
[1753890188210,3.7994,3793.9,3793.8,3.38]
[1753890188416,4.4385,3793.9,3793.8,1.4434]
[1753890188620,0.2,3793.9,3793.8,4.7708]
[1753890189519,0.7607,3793.9,3793.8,4.7708]
[1753890192221,2.157,3793.9,3793.8,4.7708]
[1753890192422,3.7994,3793.9,3793.8,4.7708]
[1753890192618,4.12661,3793.6,3793.5,2.2271]
[1753890192829,4.76571,3793.6,3793.5,2.2271]
[1753890193316,3.5994,3793.6,3793.5,3.38]
[1753890193521,3.5994,3793.6,3793.5,4.7708]
[1753890195320,3.5994,3793.6,3793.5,3.9462]
[1753890195726,3.5994,3793.6,3793.5,4.7708]
[1753890196412,3.5994,3793.6,3793.5,1.4434]
[1753890196612,4.2385,3793.6,3793.5,0.8435]
[1753890196819,1.904,3793.3,3793.2,4.2046]
[1753890197017,3.5994,3793.3,3793.2,4.2046]
[1753890197220,3.5994,3793.3,3793.2,4.7708]
[1753890197720,2.1588,3792.9,3792.8,2.2271]
[1753890197922,3.5994,3792.9,3792.8,3.38]
[1753890198121,4.2385,3792.9,3792.8,2.2271]
[1753890198421,3.5994,3792.9,3792.8,3.9462]
[1753890198627,3.5994,3792.9,3792.8,4.7708]
[1753890200628,3.5994,3792.9,3792.8,3.9462]
[1753890200929,3.5994,3792.5,3792.4,4.7708]
[1753890201629,4.12675,3792.5,3792.4,4.7708]
[1753890201923,1.0881,3792.2,3792.1,2.7933]
[1753890202123,4.1268,3792.2,3792.1,4.7708]
[1753890202734,4.7659,3792.2,3792.1,3.38]
[1753890202929,4.7659,3792.2,3792.1,0.8435]
[1753890203531,4.12683,3791.9,3791.8,2.5963]
[1753890203823,4.12683,3791.9,3791.8,3.38]
[1753890204425,3.5994,3791.9,3791.8,3.9462]
[1753890204627,3.5994,3791.9,3791.8,4.7708]
[1753890204833,2.7195,3791.9,3791.8,4.7708]
[1753890205425,1.957,3791.9,3791.8,4.7708]
[1753890205728,1.13725032,3793.9,3791.8,4.7708]
[1753890205927,4.12672,3792.7,3792.6,4.7708]
[1753890206328,4.12672,3792.7,3792.6,3.38]
[1753890206530,4.76582,3792.7,3792.6,2.2271]
[1753890206728,4.76582,3792.7,3792.6,1.4434]
[1753890206924,1.08813,3792.0,3791.9,4.7708]
[1753890207129,4.12683,3792.0,3791.9,4.7708]
[1753890207428,2.7195,3792.0,3791.9,4.7708]
[1753890208039,1.3762,3792.0,3791.9,4.7708]
[1753890208231,0.5607,3792.0,3791.9,4.7708]
[1753890209731,0.5607,3792.0,3791.9,3.38]
[1753890209732,2.7902,3792.0,3791.9,3.38]
[1753890210035,3.6301,3792.0,3791.9,3.38]
[1753890210432,3.6301,3792.0,3791.9,3.9612]
[1753890211033,3.6301,3792.0,3791.9,4.8475]
[1753890212540,2.772,3791.6,3791.5,4.1643]
[1753890212735,3.6119,3791.6,3791.5,2.8664]
[1753890212942,4.13938,3791.6,3791.5,4.7455]
[1753890213540,4.87570343,3791.6,3791.5,4.7455]
[1753890215036,4.13938,3791.6,3791.5,4.7455]
[1753890215239,1.4283,3791.6,3791.5,4.7455]
[1753890216537,0.52747,3791.7,3791.6,4.7455]
[1753890217139,0.52746,3791.8,3791.7,4.43666]
[1753890217339,0.52746,3791.8,3791.7,4.7455]
[1753890218039,4.13936,3791.8,3791.7,0.8363]
[1753890218237,4.13936,3791.8,3791.7,3.8592]
[1753890218440,2.772,3791.8,3791.7,4.7455]
[1753890218743,2.0027,3791.8,3791.7,4.7455]
[1753890218939,0.52744,3791.9,3791.8,4.7455]
[1753890219244,1.95574,3791.9,3791.8,4.7455]
[1753890219648,2.53014,3791.9,3791.8,4.7455]
[1753890220148,3.29944,3791.9,3791.8,4.7455]
[1753890220546,4.13934,3791.9,3791.8,4.7455]
[1753890222145,0.52743,3792.0,3791.8,5.27294]
[1753890222345,1.06951,3792.1,3792.0,3.647]
[1753890222546,1.06951,3792.1,3792.0,4.7455]
[1753890222954,4.13931,3792.1,3792.0,4.7455]
[1753890223256,4.13931,3792.1,3792.0,3.8592]
[1753890224149,4.74841,3792.1,3792.0,3.8592]
[1753890224347,0.73632343,3792.2,3792.1,2.516]
[1753890224650,1.31819,3793.1,3792.3,1.62587]
[1753890224855,4.03561343,3792.9,3792.8,1.9244]
[1753890225051,4.87551343,3792.9,3792.8,4.7455]
[1753890225953,5.48461343,3792.9,3792.8,3.278]
[1753890230158,4.87551343,3792.9,3792.8,4.7455]
[1753890230761,5.48461343,3792.9,3792.8,3.278]
[1753890230961,5.48461343,3792.9,3792.8,1.3989]
[1753890231868,4.87551343,3792.9,3792.8,4.7455]
[1753890232058,0.52729,3792.9,3792.8,4.7455]
[1753890233361,1.62252343,3793.2,3792.8,4.7455]
[1753890233362,0.52727,3793.1,3793.0,4.7455]
[1753890234260,4.13917,3793.1,3793.0,3.8592]
[1753890235160,4.13917,3793.1,3793.0,4.7455]
[1753890237860,4.13917,3793.1,3793.0,3.278]
[1753890238068,1.8858,3792.4,3792.3,2.7607]
[1753890238269,4.34822343,3792.4,3792.3,2.7607]
[1753890238565,4.34822343,3792.4,3791.4,0.73632343]
[1753890238566,2.1103,3791.9,3791.8,2.6465]
[1753890238866,2.63773,3791.9,3791.8,4.6045]
[1753890239259,3.19433,3791.9,3791.8,4.6045]
[1753890239460,3.19433,3791.9,3791.8,3.7834]
[1753890239660,3.99353,3791.9,3791.8,4.6045]
[1753890239961,4.57213,3791.9,3791.8,3.2506]
[1753890240263,0.73632343,3792.1,3790.8,43.40716256]
[1753890240264,0.52757,3790.9,3790.8,1.8309]
[1753890240462,1.10727,3790.9,3790.8,1.8309]
[1753890240855,1.10727,3790.9,3790.6,4.68983913]
[1753890240856,1.1073,3790.7,3790.6,4.68983913]
[1753890241060,4.5723,3790.7,3790.6,0.8156]
[1753890241459,2.38444,3790.4,3790.3,6.80353913]
[1753890241664,3.99374,3790.4,3790.3,8.47323913]
[1753890241868,3.99374,3790.4,3790.3,3.7834]
[1753890242367,0.8101,3791.1,3790.9,1.2981]
[1753890242570,1.33764,3791.1,3791.0,4.6045]
[1753890242766,0.52754,3791.1,3791.0,4.6045]
[1753890242965,1.10724,3791.1,3791.0,4.6045]
[1753890243270,1.91734,3791.1,3791.0,4.6045]
[1753890244067,2.47394,3791.1,3791.0,4.6045]
[1753890244269,3.99364,3791.1,3791.0,3.2506]
[1753890245061,3.99364,3791.1,3791.0,3.7834]
[1753890246065,3.99364,3791.1,3789.9,4.68983913]
[1753890246066,2.129,3791.0,3790.2,0.8156]
[1753890246370,4.68725632,3790.8,3790.7,1.2981]
[1753890246570,3.19449,3790.8,3790.7,3.7834]
[1753890246761,0.52758,3790.9,3790.8,0.8211]
[1753890247069,0.52758,3790.9,3790.8,4.6045]
[1753890247266,0.52756,3791.0,3790.8,1.8309]
[1753890247564,0.52753,3791.3,3791.2,4.6045]
[1753890248157,0.52751,3791.4,3791.3,2.7736]
[1753890248366,0.52751,3791.4,3791.3,4.6045]
[1753890249063,0.5275,3791.5,3791.3,1.8309]
[1753890249264,1.9173,3791.5,3791.4,4.6045]
[1753890249865,1.9464,3791.5,3791.4,4.6045]
[1753890250065,0.52747,3791.7,3791.5,4.6045]
[1753890250264,1.33755,3791.8,3791.7,4.6045]
[1753890250576,3.19435,3791.8,3791.7,4.6045]
[1753890250866,6.04611632,3791.8,3791.7,0.8156]
[1753890251171,3.9829,3791.4,3791.3,4.6045]
[1753890252270,3.9829,3791.4,3791.3,3.2506]
[1753890252469,1.9173,3791.4,3791.3,4.6045]
[1753890252770,1.1072,3791.4,3791.3,4.6045]
[1753890253165,1.1072,3791.4,3790.2,1.31915]
[1753890253166,1.31846,3792.3,3791.9,2.9678]
[1753890253470,2.47381,3792.1,3792.0,4.6045]
[1753890253668,3.98281,3792.1,3792.0,4.6045]
[1753890255169,0.52741,3792.1,3792.0,4.6045]
[1753890255375,1.31822,3793.0,3792.1,2.7736]
[1753890255571,1.66359,3792.9,3792.8,3.8653]
[1753890255870,0.52744,3791.9,3791.8,3.7889]
[1753890256077,4.81964,3791.9,3791.8,1.0917]
[1753890256373,4.81964,3791.9,3791.8,2.9678]
[1753890256565,0.52742,3792.0,3791.8,3.7889]
[1753890256767,0.52742,3792.0,3791.9,3.7889]
[1753890257167,0.52741,3792.1,3791.9,1.8309]
[1753890257365,0.52741,3792.1,3792.0,3.7889]
[1753890257769,0.52741,3792.1,3792.0,4.6045]
[1753890261070,2.47381,3792.1,3792.0,4.6045]
[1753890261266,0.5566,3791.8,3791.7,3.3325]
[1753890261472,3.4554,3791.8,3791.7,4.6045]
[1753890261972,4.81965,3791.8,3791.7,4.6045]
[1753890262178,0.52744,3791.9,3791.8,4.6045]
[1753890262878,3.17274,3791.9,3791.8,4.6045]
[1753890263073,4.81964,3791.9,3791.8,1.9073]
[1753890263282,4.81964,3791.9,3791.8,1.3745]
[1753890263473,4.81964,3791.9,3791.8,3.2506]
[1753890263875,4.81967,3791.6,3791.5,1.2981]
[1753890264079,4.81967,3791.6,3791.5,2.1137]
[1753890264377,4.81967,3791.6,3791.5,3.2506]
[1753890264982,4.81967,3791.6,3791.5,3.7834]
[1753890265381,4.81967,3791.6,3791.5,4.6045]
[1753890266082,4.81967,3791.6,3791.5,3.2506]
[1753890266282,4.81967,3791.6,3791.5,2.435]
[1753890266681,2.38432,3791.3,3791.2,3.4676]
[1753890266882,3.19442,3791.3,3791.2,4.6045]
[1753890267182,4.81972,3791.3,3791.2,2.6917]
[1753890267383,4.81972,3791.3,3791.2,3.7834]
[1753890267582,4.81972,3791.3,3791.2,4.6045]
[1753890268081,3.19442,3791.3,3791.2,4.6045]
[1753890268474,3.98292,3791.3,3791.2,4.6045]
[1753890270085,3.19442,3791.3,3791.2,4.6045]
[1753890270277,2.47392,3791.3,3791.2,4.6045]
[1753890270482,1.66382,3791.3,3791.2,4.6045]
[1753890270886,0.52752,3791.3,3791.2,4.6045]
[1753890271379,0.52751,3791.4,3791.3,4.575]
[1753890271581,0.52751,3791.4,3791.3,3.7265]
[1753890271784,0.52739,3792.2,3792.1,4.575]
[1753890272182,2.42119,3792.2,3792.1,4.575]
[1753890272384,3.11209,3792.2,3792.1,4.575]
[1753890272992,3.88079,3792.2,3792.1,4.575]
[1753890273286,4.66029,3792.2,3792.1,3.7265]
[1753890274094,1.8938,3792.2,3792.1,4.575]
[1753890274294,1.0608,3792.2,3792.1,4.575]
[1753890274493,0.52738,3792.3,3792.1,4.575]
[1753890274689,3.11201,3792.8,3792.7,1.2721]
[1753890274890,5.44250813,3792.8,3792.7,3.1854]
[1753890276296,4.66021,3792.8,3792.7,3.1854]
[1753890276498,3.89151,3792.8,3792.7,4.575]
[1753890276799,3.89422886,3792.8,3792.7,3.7156]
[1753890277001,5.44242886,3792.8,3792.7,4.575]
[1753890277295,5.44242886,3792.8,3792.7,3.7265]
[1753890278098,4.66021,3792.8,3792.7,3.7265]
[1753890278800,4.66021,3792.8,3792.7,4.575]
[1753890279401,4.66021,3792.8,3792.7,2.326]
[1753890279597,3.11205,3792.5,3792.4,4.575]
[1753890279998,2.42115,3792.5,3792.4,4.575]
[1753890280200,1.58815,3792.5,3792.4,4.575]
[1753890281002,1.06685,3792.5,3792.4,4.575]
[1753890281304,2.42115,3792.5,3792.4,4.575]
[1753890281501,0.52735,3792.6,3792.4,4.575]
[1753890281694,0.52735,3792.6,3792.5,4.575]
[1753890282399,1.06685,3792.6,3792.5,4.575]
[1753890283405,2.42115,3792.6,3792.5,4.575]
[1753890284105,1.8938,3792.6,3792.5,4.575]
[1753890284902,1.0608,3793.0,3792.9,4.575]
[1753890285196,1.8938,3793.0,3792.9,4.575]
[1753890285400,2.5847,3793.0,3792.9,4.575]
[1753890285607,4.1329,3793.0,3792.9,4.575]
[1753890286399,0.5273,3792.9,3792.4,0.8485]
[1753890286703,4.66024,3792.6,3792.5,3.7265]
[1753890287306,4.66024,3792.6,3792.5,4.575]
[1753890288205,0.52732,3792.7,3792.5,4.575]
[1753890288400,3.04764,3793.3,3793.2,1.8132]
[1753890288595,0.52722,3793.5,3793.2,4.575]
[1753890288802,1.06667,3793.8,3793.7,3.7265]
[1753890289001,1.06667,3793.8,3793.7,4.575]
[1753890289303,2.42097,3793.8,3793.7,4.575]
[1753890289699,0.2,3793.9,3793.7,2.6617]
[1753890289899,0.2,3793.9,3793.0,1.31819]
[1753890289900,0.2,3793.9,3793.8,4.575]
[1753890290101,1.2608,3793.9,3793.8,4.575]
[1753890290302,3.5534,3793.9,3793.8,4.575]
[1753890290703,2.7847,3793.9,3793.8,4.575]
[1753890293309,3.5534,3793.9,3793.8,4.575]
[1753890293608,4.3329,3793.9,3793.8,3.7265]
[1753890293806,4.3329,3793.9,3793.5,0.8485]
[1753890294111,0.2,3793.9,3793.5,2.6617]
[1753890294308,0.52719,3793.7,3793.6,2.6617]
[1753890294506,0.52719,3793.7,3793.6,4.575]
[1753890295008,0.72716,3793.9,3793.6,2.34038]
[1753890295211,1.78796,3793.9,3793.8,4.575]
[1753890295405,3.31186,3793.9,3793.8,4.575]
[1753890295605,4.86006,3793.9,3793.8,4.575]
[1753890297004,4.08056,3793.9,3793.8,4.575]
[1753890297211,4.86006,3793.9,3793.8,3.7265]
[1753890299908,2.44305,3793.3,3793.2,4.4883]
[1753890300112,0.52728,3793.1,3793.0,0.5411]
[1753890300308,1.4369,3792.4,3792.3,0.5411]
[1753890300615,0.539,3792.4,3792.3,4.4883]
[1753890300806,1.5423,3792.7,3792.6,4.4883]
[1753890300807,1.9158,3792.7,3792.6,4.4883]
[1753890301510,0.539,3792.7,3792.6,4.4883]
[1753890301715,1.62998,3793.0,3792.9,1.7748]
[1753890301910,2.44308,3793.0,3792.9,4.4883]
[1753890302109,3.15078,3793.0,3792.9,4.4883]
[1753890302412,4.72328,3793.0,3792.9,4.4883]
[1753890302708,1.62998,3793.0,3792.9,4.4883]
[1753890303113,1.1027,3793.0,3792.9,4.4883]
[1753890303812,1.9158,3793.0,3792.9,4.4883]
[1753890304608,1.1027,3793.0,3792.9,4.4883]
[1753890304812,0.539,3793.0,3792.9,4.4883]
[1753890305013,1.1027,3793.0,3792.9,4.4883]
[1753890305208,0.8131,3793.2,3793.0,2.7135]
[1753890305405,0.7292,3793.8,3793.2,2.7135]
[1753890305607,0.5272,3793.6,3793.5,1.7748]
[1753890305814,1.0662,3793.6,3793.5,4.4883]
[1753890306114,2.443,3793.6,3793.5,4.4883]
[1753890306812,4.7232,3793.6,3793.5,4.4883]
[1753890307115,0.5272,3793.6,3793.5,4.4883]
[1753890307609,2.44298,3793.8,3793.7,4.4883]
[1753890307814,1.62991,3793.5,3793.4,2.1965]
[1753890308009,2.44301,3793.5,3793.4,4.4883]
[1753890308210,3.15071,3793.5,3793.4,4.4883]
[1753890308411,4.72321,3793.5,3793.4,2.0368]
[1753890308609,3.15079,3792.9,3792.8,3.3601]